fUSD/lending_fUSD_20260530
["ID","MTS","AMOUNT","RATE_DAILY","PERIOD"]
[423471101,1780150244000,-575.85275073,0.00014999,2]
[423471092,1780150244000,-500.0,0.00014999,2]
[423471099,1780150244000,-514.95046541,0.00014999,2]
[423471098,1780150244000,-575.78,0.00014999,2]
[423471104,1780150244000,-151.0,0.00014999,2]
[423471112,1780150244000,-500.0,0.00014999,2]
[423471113,1780150244000,-500.0,0.00014999,2]
[423471107,1780150244000,-494.481074,0.00014999,2]
[423471103,1780150244000,-494.481074,0.00014999,2]
[423471108,1780150244000,-193.519007,0.00014999,2]
[423471109,1780150244000,-193.519007,0.00014999,2]
[423471110,1780150244000,-193.519007,0.00014999,2]
[423471114,1780150244000,-500.0,0.00014999,2]
[423471106,1780150244000,-494.481074,0.00014999,2]
[423471105,1780150244000,-494.481074,0.00014999,2]
[423471102,1780150244000,-152.68221,0.00014999,2]
[423471111,1780150244000,-193.519007,0.00014999,2]
[423471116,1780150244000,-498.4,0.00014999,2]
[423471148,1780150246000,-1290.7215707,0.00015,2]
[423471147,1780150246000,-618.51915189,0.00015,2]
[423471146,1780150246000,-405.28705655,0.00015,2]
[423471145,1780150246000,-586.32426985,0.00015,2]
[423471154,1780150493000,635.86427403,0.00028082,120]
[423471155,1780150551000,151.0,0.00028,120]
[423471156,1780150575000,201.0,0.00028,120]
[423471158,1780150707000,201.0,0.00028,120]
[423471187,1780151341000,1000.0,0.00028081,120]
[423471194,1780151431000,-161.05868247,0.00012295,2]
[423471195,1780151431000,-18.10131753,0.00012295,2]
[423471193,1780151431000,-150.0,0.00012289,2]
[423471196,1780151431000,-335.03699647,0.00012305,2]
[423471200,1780151431000,-200.0,0.00012733,2]
[423471199,1780151431000,-1000.0,0.00012686,2]
[423471201,1780151431000,-628.73,0.00012755,2]
[423471198,1780151431000,-335.47,0.00012635,2]
[423471202,1780151431000,-1129.5,0.0001288,2]
[423471204,1780151431000,-1200.0,0.0001292,2]
[423471197,1780151431000,-656.48300353,0.00012305,2]
[423471215,1780151431000,-223.63985403,0.00013087,2]
[423471213,1780151431000,-500.0,0.00013087,2]
[423471203,1780151431000,-2400.0,0.000129,4]
[423471212,1780151431000,-456.96985432,0.00013087,2]
[423471207,1780151431000,-300.0,0.00013081,2]
[423471210,1780151431000,-800.0,0.00013082,2]
[423471211,1780151431000,-500.0,0.00013082,2]
[423471221,1780151431000,-6813.0253,0.00013088,2]
[423471217,1780151431000,-180.40419165,0.00013087,2]
[423471206,1780151431000,-1159.23,0.00012937,2]
[423471219,1780151431000,-150.0,0.00013087,2]
[423471209,1780151431000,-2600.0,0.00013082,2]
[423471222,1780151432000,-33234.4339,0.00013088,2]
[423471224,1780151432000,-368.52852077,0.00013088,2]
[423471223,1780151432000,-29125.00777923,0.00013088,2]
[423471236,1780151432000,-67491.2484475,0.00013188,2]
[423471231,1780151432000,-2000.0,0.00013138,2]
[423471235,1780151432000,-250.0,0.00013188,2]
[423471230,1780151432000,-215.58360558,0.00013121,2]
[423471233,1780151432000,-400.0,0.00013188,2]
[423471228,1780151432000,-8433.84376623,0.00013088,2]
[423471226,1780151432000,-2500.0,0.00013088,2]
[423471225,1780151432000,-5000.0,0.00013088,2]
[423471229,1780151432000,-3549.96069019,0.00013088,2]
[423471237,1780151432000,-26459.77054051,0.00013188,2]
[423471239,1780151432000,-453.6375,0.00013188,2]
[423471238,1780151432000,-18745.35667978,0.00013188,2]
[423471227,1780151432000,-15768.50134845,0.00013088,2]
[423471258,1780151439000,-500.0,0.00013425,2]
[423471255,1780151439000,-500.0,0.00013425,2]
[423471257,1780151439000,-500.0,0.00013425,2]
[423471259,1780151439000,-500.0,0.00013425,2]
[423471252,1780151439000,-500.0,0.00013425,2]
[423471253,1780151439000,-500.0,0.00013425,2]
[423471250,1780151439000,-1590.0,0.000134,2]
[423471251,1780151439000,-2318.0,0.000134,2]
[423471243,1780151439000,-4827.142,0.00013188,2]
[423471246,1780151439000,-2000.0,0.00013288,2]
[423471247,1780151439000,-15768.50134839,0.00013289,2]
[423471254,1780151439000,-500.0,0.00013425,2]
[423471248,1780151439000,-8433.8437662,0.00013289,2]
[423471245,1780151439000,-170.1,0.00013228,2]
[423471244,1780151439000,-366.259,0.00013188,2]
[423471242,1780151439000,-754169.92003221,0.00013188,2]
[423471249,1780151439000,-3549.96069013,0.00013347,2]
[423471256,1780151439000,-500.0,0.00013425,2]
[423471260,1780151439000,-450.0,0.00013425,2]
[423471272,1780151439000,-8433.8437662,0.00013491,2]
[423471280,1780151439000,-150.0,0.00013571,2]
[423471262,1780151439000,-150.0,0.00013488,2]
[423471278,1780151439000,-150.0,0.0001355,2]
[423471279,1780151439000,-150.0,0.00013553,2]
[423471277,1780151439000,-150.0,0.00013543,2]
[423471275,1780151439000,-150.0,0.00013508,2]
[423471271,1780151439000,-15768.50134839,0.00013491,2]
[423471270,1780151439000,-150.0,0.00013488,2]
[423471266,1780151439000,-150.0,0.00013488,2]
[423471276,1780151439000,-150.0,0.00013529,2]
[423471265,1780151439000,-150.0,0.00013488,2]
[423471269,1780151439000,-150.0,0.00013488,2]
[423471268,1780151439000,-150.0,0.00013488,2]
[423471264,1780151439000,-150.0,0.00013488,2]
[423471263,1780151439000,-150.0,0.00013488,2]
[423471261,1780151439000,-150.34604901,0.00013488,2]
[423471267,1780151439000,-150.0,0.00013488,2]
[423471273,1780151439000,-10000.0,0.000135,2]
[423471274,1780151439000,-1000.0,0.000135,2]
[423471309,1780151440000,-500.0,0.00013698,2]
[423471319,1780151440000,-500.0,0.00013698,2]
[423471316,1780151440000,-500.0,0.00013698,2]
[423471313,1780151440000,-500.0,0.00013698,2]
[423471325,1780151440000,-500.0,0.00013698,2]
[423471323,1780151440000,-500.0,0.00013698,2]
[423471315,1780151440000,-500.0,0.00013698,2]
[423471324,1780151440000,-245.97684644,0.00013698,2]
[423471306,1780151440000,-514.95046541,0.00013698,2]
[423471322,1780151440000,-500.0,0.00013698,2]
[423471314,1780151440000,-500.0,0.00013698,2]
[423471317,1780151440000,-500.0,0.00013698,2]
[423471326,1780151440000,-500.0,0.00013698,2]
[423471320,1780151440000,-500.0,0.00013698,2]
[423471318,1780151440000,-500.0,0.00013698,2]
[423471329,1780151440000,-500.0,0.00013698,2]
[423471328,1780151440000,-512.05018733,0.00013698,2]
[423471332,1780151440000,-500.0,0.00013698,2]
[423471327,1780151440000,-500.0,0.00013698,2]
[423471330,1780151440000,-500.0,0.00013698,2]
[423471331,1780151440000,-500.0,0.00013698,2]
[423471334,1780151440000,-500.0,0.00013698,2]
[423471336,1780151440000,-500.0,0.00013698,2]
[423471304,1780151440000,-500.0,0.00013698,2]
[423471321,1780151440000,-500.0,0.00013698,2]
[423471311,1780151440000,-500.0,0.00013698,2]
[423471284,1780151440000,-150.0,0.00013599,2]
[423471312,1780151440000,-500.0,0.00013698,2]
[423471335,1780151440000,-500.0,0.00013698,2]
[423471287,1780151440000,-150.0,0.00013613,2]
[423471286,1780151440000,-3549.96069013,0.00013606,2]
[423471281,1780151440000,-150.0,0.00013571,2]
[423471282,1780151440000,-150.0,0.00013581,2]
[423471283,1780151440000,-150.0,0.00013592,2]
[423471285,1780151440000,-500.0,0.00013599,2]
[423471288,1780151440000,-150.0,0.00013618,2]
[423471294,1780151440000,-150.0,0.00013654,2]
[423471295,1780151440000,-150.0,0.00013675,2]
[423471299,1780151440000,-8433.8437662,0.00013692,2]
[423471305,1780151440000,-500.0,0.00013698,2]
[423471298,1780151440000,-15768.50134839,0.00013692,2]
[423471296,1780151440000,-150.0,0.00013675,2]
[423471297,1780151440000,-150.0,0.00013683,2]
[423471300,1780151440000,-150.0,0.00013696,2]
[423471292,1780151440000,-150.0,0.00013654,2]
[423471291,1780151440000,-150.0,0.00013638,2]
[423471293,1780151440000,-150.0,0.00013654,2]
[423471301,1780151440000,-500.0,0.00013698,2]
[423471302,1780151440000,-500.0,0.00013698,2]
[423471307,1780151440000,-500.0,0.00013698,2]
[423471310,1780151440000,-500.0,0.00013698,2]
[423471308,1780151440000,-500.0,0.00013698,2]
[423471290,1780151440000,-150.0,0.00013633,2]
[423471338,1780151440000,-500.0,0.00013698,2]
[423471303,1780151440000,-502.31004729,0.00013698,2]
[423471337,1780151440000,-500.0,0.00013698,2]
[423471368,1780151440000,-151.0,0.00013699,2]
[423471365,1780151440000,-2500.0,0.00013699,2]
[423471370,1780151440000,-151.0,0.00013699,2]
[423471369,1780151440000,-151.0,0.00013699,2]
[423471371,1780151440000,-151.0,0.00013699,2]
[423471372,1780151440000,-151.0,0.00013699,2]
[423471373,1780151440000,-151.0,0.00013699,2]
[423471374,1780151440000,-151.0,0.00013699,2]
[423471386,1780151440000,-151.0,0.00013699,2]
[423471384,1780151440000,-151.0,0.00013699,2]
[423471377,1780151440000,-151.0,0.00013699,2]
[423471364,1780151440000,-500.0,0.00013698,2]
[423471383,1780151440000,-151.0,0.00013699,2]
[423471385,1780151440000,-151.0,0.00013699,2]
[423471381,1780151440000,-151.0,0.00013699,2]
[423471387,1780151440000,-151.0,0.00013699,2]
[423471380,1780151440000,-151.0,0.00013699,2]
[423471378,1780151440000,-151.0,0.00013699,2]
[423471379,1780151440000,-151.0,0.00013699,2]
[423471382,1780151440000,-151.0,0.00013699,2]
[423471388,1780151440000,-151.0,0.00013699,2]
[423471389,1780151440000,-151.0,0.00013699,2]
[423471390,1780151440000,-151.0,0.00013699,2]
[423471333,1780151440000,-500.0,0.00013698,2]
[423471376,1780151440000,-151.0,0.00013699,2]
[423471366,1780151440000,-166.66,0.00013699,2]
[423471375,1780151440000,-151.0,0.00013699,2]
[423471367,1780151440000,-200.0,0.00013699,2]
[423471391,1780151440000,-151.0,0.00013699,2]
[423471347,1780151440000,-500.0,0.00013698,2]
[423471348,1780151440000,-500.0,0.00013698,2]
[423471340,1780151440000,-500.0,0.00013698,2]
[423471342,1780151440000,-500.0,0.00013698,2]
[423471350,1780151440000,-3453.62,0.00013698,2]
[423471343,1780151440000,-500.0,0.00013698,2]
[423471339,1780151440000,-500.0,0.00013698,2]
[423471345,1780151440000,-500.0,0.00013698,2]
[423471349,1780151440000,-3453.62,0.00013698,2]
[423471344,1780151440000,-500.0,0.00013698,2]
[423471341,1780151440000,-500.0,0.00013698,2]
[423471352,1780151440000,-3453.62,0.00013698,2]
[423471346,1780151440000,-500.0,0.00013698,2]
[423471362,1780151440000,-500.0,0.00013698,2]
[423471360,1780151440000,-500.0,0.00013698,2]
[423471356,1780151440000,-500.0,0.00013698,2]
[423471361,1780151440000,-500.0,0.00013698,2]
[423471359,1780151440000,-500.0,0.00013698,2]
[423471357,1780151440000,-500.0,0.00013698,2]
[423471363,1780151440000,-500.0,0.00013698,2]
[423471354,1780151440000,-500.0,0.00013698,2]
[423471353,1780151440000,-500.0,0.00013698,2]
[423471355,1780151440000,-500.0,0.00013698,2]
[423471351,1780151440000,-3453.62,0.00013698,2]
[423471358,1780151440000,-500.0,0.00013698,2]
[423471431,1780151441000,-786.83464092,0.00013699,2]
[423471433,1780151441000,-786.83464092,0.00013699,2]
[423471426,1780151441000,-786.83464092,0.00013699,2]
[423471436,1780151441000,-786.83464092,0.00013699,2]
[423471428,1780151441000,-786.83464092,0.00013699,2]
[423471425,1780151441000,-786.83464092,0.00013699,2]
[423471429,1780151441000,-786.83464092,0.00013699,2]
[423471427,1780151441000,-786.83464092,0.00013699,2]
[423471422,1780151441000,-786.83464092,0.00013699,2]
[423471423,1780151441000,-786.83464092,0.00013699,2]
[423471430,1780151441000,-786.83464092,0.00013699,2]
[423471437,1780151441000,-786.83464092,0.00013699,2]
[423471432,1780151441000,-786.83464092,0.00013699,2]
[423471447,1780151441000,-786.83464092,0.00013699,2]
[423471435,1780151441000,-786.83464092,0.00013699,2]
[423471438,1780151441000,-786.83464092,0.00013699,2]
[423471439,1780151441000,-786.83464092,0.00013699,2]
[423471440,1780151441000,-786.83464092,0.00013699,2]
[423471442,1780151441000,-786.83464092,0.00013699,2]
[423471443,1780151441000,-786.83464092,0.00013699,2]
[423471441,1780151441000,-786.83464092,0.00013699,2]
[423471449,1780151441000,-786.83464092,0.00013699,2]
[423471444,1780151441000,-786.83464092,0.00013699,2]
[423471446,1780151441000,-786.83464092,0.00013699,2]
[423471448,1780151441000,-786.83464092,0.00013699,2]
[423471445,1780151441000,-786.83464092,0.00013699,2]
[423471419,1780151441000,-786.83464092,0.00013699,2]
[423471434,1780151441000,-786.83464092,0.00013699,2]
[423471420,1780151441000,-786.83464092,0.00013699,2]
[423471399,1780151441000,-786.83464092,0.00013699,2]
[423471413,1780151441000,-786.83464092,0.00013699,2]
[423471393,1780151441000,-279.960539,0.00013699,2]
[423471398,1780151441000,-786.83464092,0.00013699,2]
[423471461,1780151441000,-150.0,0.00013758,2]
[423471397,1780151441000,-786.83464092,0.00013699,2]
[423471392,1780151441000,-151.0,0.00013699,2]
[423471395,1780151441000,-721.0,0.00013699,2]
[423471396,1780151441000,-786.83464092,0.00013699,2]
[423471394,1780151441000,-510.73,0.00013699,2]
[423471400,1780151441000,-786.83464092,0.00013699,2]
[423471409,1780151441000,-786.83464092,0.00013699,2]
[423471401,1780151441000,-786.83464092,0.00013699,2]
[423471410,1780151441000,-786.83464092,0.00013699,2]
[423471411,1780151441000,-786.83464092,0.00013699,2]
[423471402,1780151441000,-786.83464092,0.00013699,2]
[423471412,1780151441000,-786.83464092,0.00013699,2]
[423471405,1780151441000,-786.83464092,0.00013699,2]
[423471404,1780151441000,-786.83464092,0.00013699,2]
[423471403,1780151441000,-786.83464092,0.00013699,2]
[423471406,1780151441000,-786.83464092,0.00013699,2]
[423471407,1780151441000,-786.83464092,0.00013699,2]
[423471408,1780151441000,-786.83464092,0.00013699,2]
[423471414,1780151441000,-786.83464092,0.00013699,2]
[423471416,1780151441000,-786.83464092,0.00013699,2]
[423471418,1780151441000,-786.83464092,0.00013699,2]
[423471417,1780151441000,-786.83464092,0.00013699,2]
[423471424,1780151441000,-786.83464092,0.00013699,2]
[423471415,1780151441000,-786.83464092,0.00013699,2]
[423471421,1780151441000,-786.83464092,0.00013699,2]
[423471450,1780151441000,-786.83464092,0.00013699,2]
[423471451,1780151441000,-786.83464092,0.00013699,2]
[423471512,1780151441000,-150.0,0.0001407,2]
[423471486,1780151441000,-150.0,0.00013904,2]
[423471488,1780151441000,-150.0,0.00013932,2]
[423471496,1780151441000,-150.0,0.00013987,2]
[423471487,1780151441000,-150.0,0.00013925,2]
[423471490,1780151441000,-150.0,0.00013944,2]
[423471489,1780151441000,-150.0,0.00013937,2]
[423471491,1780151441000,-150.0,0.00013946,2]
[423471495,1780151441000,-150.0,0.00013987,2]
[423471497,1780151441000,-150.0,0.00013987,2]
[423471494,1780151441000,-166.66,0.00013973,2]
[423471492,1780151441000,-150.0,0.00013956,2]
[423471499,1780151441000,-417.43848897,0.0001399,2]
[423471510,1780151441000,-150.0,0.0001405,2]
[423471509,1780151441000,-150.0,0.0001405,2]
[423471498,1780151441000,-150.0,0.00013987,2]
[423471501,1780151441000,-265.79243738,0.00014,30]
[423471502,1780151441000,-150.0,0.00014008,2]
[423471503,1780151441000,-150.0,0.00014009,2]
[423471507,1780151441000,-2318.0,0.0001404,2]
[423471504,1780151441000,-153.5,0.00014026,2]
[423471508,1780151441000,-150.0,0.00014043,2]
[423471505,1780151441000,-150.0,0.00014029,2]
[423471500,1780151441000,-1500.0,0.00014,2]
[423471506,1780151441000,-1590.0,0.0001404,2]
[423471454,1780151441000,-150.0,0.00013717,2]
[423471511,1780151441000,-150.0,0.0001407,2]
[423471513,1780151441000,-150.0,0.00014074,2]
[423471484,1780151441000,-7200.0,0.000139,5]
[423471483,1780151441000,-8433.8437662,0.00013893,2]
[423471493,1780151441000,-150.0,0.00013966,2]
[423471476,1780151441000,-187.71242717,0.00013862,10]
[423471452,1780151441000,-163.44,0.000137,2]
[423471478,1780151441000,-500.0,0.00013873,2]
[423471459,1780151441000,-150.0,0.00013737,2]
[423471456,1780151441000,-2318.0,0.0001372,2]
[423471460,1780151441000,-150.0,0.00013748,2]
[423471455,1780151441000,-1590.0,0.0001372,2]
[423471457,1780151441000,-150.0,0.00013737,2]
[423471458,1780151441000,-150.0,0.00013737,2]
[423471462,1780151441000,-150.0,0.00013765,2]
[423471465,1780151441000,-150.0,0.00013787,2]
[423471464,1780151441000,-150.0,0.00013779,2]
[423471473,1780151441000,-150.0,0.00013842,2]
[423471467,1780151441000,-4800.0,0.000138,5]
[423471468,1780151441000,-150.0,0.00013813,2]
[423471453,1780151441000,-150.0,0.0001371,2]
[423471470,1780151441000,-150.0,0.00013821,2]
[423471463,1780151441000,-150.0,0.00013769,2]
[423471482,1780151441000,-15768.50134839,0.00013893,2]
[423471480,1780151441000,-150.0,0.00013879,2]
[423471477,1780151441000,-3549.96069013,0.00013865,2]
[423471481,1780151441000,-150.0,0.00013883,2]
[423471474,1780151441000,-150.0,0.00013862,2]
[423471479,1780151441000,-150.0,0.00013876,2]
[423471475,1780151441000,-150.0,0.00013862,2]
[423471471,1780151441000,-150.0,0.00013821,2]
[423471472,1780151441000,-166.66,0.00013836,2]
[423471466,1780151441000,-150.0,0.000138,2]
[423471469,1780151441000,-150.0,0.00013821,2]
[423471485,1780151441000,-150.0,0.00013904,2]
[423471556,1780151442000,-150.0,0.00014279,2]
[423471553,1780151442000,-150.0,0.00014258,2]
[423471550,1780151442000,-500.0,0.00014249,2]
[423471560,1780151442000,-150.0,0.0001432,2]
[423471548,1780151442000,-150.0,0.00014237,2]
[423471559,1780151442000,-150.0,0.00014299,2]
[423471549,1780151442000,-166.66,0.00014247,2]
[423471544,1780151442000,-150.0,0.00014237,2]
[423471545,1780151442000,-150.0,0.00014237,2]
[423471557,1780151442000,-15768.50134839,0.00014296,2]
[423471551,1780151442000,-500.0,0.00014249,2]
[423471558,1780151442000,-8433.8437662,0.00014296,2]
[423471564,1780151442000,-150.0,0.00014335,2]
[423471554,1780151442000,-150.0,0.00014265,2]
[423471552,1780151442000,-765118.732192,0.0001425,2]
[423471561,1780151442000,-150.0,0.0001432,2]
[423471563,1780151442000,-150.0,0.00014331,2]
[423471562,1780151442000,-150.0,0.0001432,2]
[423471571,1780151442000,-500.0,0.00014351,2]
[423471565,1780151442000,-150.0,0.00014341,2]
[423471568,1780151442000,-500.0,0.00014351,2]
[423471567,1780151442000,-500.0,0.00014351,2]
[423471566,1780151442000,-420.0,0.00014344,2]
[423471570,1780151442000,-500.0,0.00014351,2]
[423471543,1780151442000,-150.0,0.00014237,2]
[423471555,1780151442000,-150.0,0.0001427,2]
[423471541,1780151442000,-1680.0,0.00014212,2]
[423471569,1780151442000,-3453.62,0.00014351,2]
[423471547,1780151442000,-150.0,0.00014237,2]
[423471522,1780151442000,-150.0,0.00014133,2]
[423471523,1780151442000,-150.0,0.00014139,2]
[423471514,1780151442000,-150.0,0.00014087,2]
[423471515,1780151442000,-150.0,0.00014091,2]
[423471519,1780151442000,-166.66,0.0001411,2]
[423471516,1780151442000,-15768.50134839,0.00014095,2]
[423471518,1780151442000,-150.0,0.00014098,2]
[423471517,1780151442000,-8433.8437662,0.00014095,2]
[423471520,1780151442000,-150.0,0.00014112,2]
[423471521,1780151442000,-3549.96069013,0.00014123,2]
[423471525,1780151442000,-500.0,0.00014147,2]
[423471526,1780151442000,-1272.0,0.00014153,2]
[423471542,1780151442000,-150.0,0.00014216,2]
[423471524,1780151442000,-150.0,0.00014143,2]
[423471527,1780151442000,-1226.0,0.00014153,2]
[423471528,1780151442000,-3550.0,0.00014153,2]
[423471529,1780151442000,-6066.0,0.00014153,2]
[423471534,1780151442000,-1734.26671604,0.0001417,2]
[423471533,1780151442000,-164.7200263,0.00014158,2]
[423471530,1780151442000,-150.0,0.00014154,2]
[423471531,1780151442000,-150.0,0.00014154,2]
[423471536,1780151442000,-150.0,0.00014195,2]
[423471538,1780151442000,-150.0,0.00014204,2]
[423471540,1780151442000,-1839.60337747,0.0001421,7]
[423471539,1780151442000,-150.0,0.00014209,2]
[423471537,1780151442000,-255.0,0.00014199,2]
[423471535,1780151442000,-150.0,0.00014175,2]
[423471573,1780151442000,-2318.0,0.0001436,2]
[423471532,1780151442000,-150.0,0.00014154,2]
[423471583,1780151442000,-150.0,0.00014387,2]
[423471607,1780151442000,-150.0,0.00014487,2]
[423471608,1780151442000,-150.0,0.00014487,2]
[423471610,1780151442000,-1129.5,0.0001449,2]
[423471614,1780151442000,-1173.41,0.00014504,2]
[423471615,1780151442000,-150.0,0.00014508,2]
[423471612,1780151442000,-8433.8437662,0.00014497,2]
[423471616,1780151442000,-350.0,0.00014516,2]
[423471613,1780151442000,-12100.0,0.000145,5]
[423471633,1780151442000,-350.0,0.00014638,2]
[423471617,1780151442000,-150.0,0.00014518,2]
[423471618,1780151442000,-150.0,0.00014528,2]
[423471611,1780151442000,-15768.50134839,0.00014497,2]
[423471605,1780151442000,-154.0,0.00014487,2]
[423471620,1780151442000,-150.0,0.0001453,2]
[423471632,1780151442000,-150.0,0.00014632,2]
[423471622,1780151442000,-150.0,0.00014542,2]
[423471631,1780151442000,-150.0,0.00014612,2]
[423471628,1780151442000,-150.0,0.00014598,2]
[423471625,1780151442000,-150.0,0.0001457,2]
[423471624,1780151442000,-150.0,0.0001457,2]
[423471627,1780151442000,-150.0,0.00014595,2]
[423471623,1780151442000,-150.0,0.00014549,2]
[423471621,1780151442000,-150.0,0.00014537,2]
[423471629,1780151442000,-2400.0,0.000146,5]
[423471626,1780151442000,-150.0,0.00014591,2]
[423471581,1780151442000,-166.66,0.00014384,2]
[423471619,1780151442000,-164.72002629,0.00014529,2]
[423471604,1780151442000,-1545.0,0.00014487,2]
[423471630,1780151442000,-150.0,0.00014612,2]
[423471606,1780151442000,-150.0,0.00014487,2]
[423471585,1780151442000,-10468.10573176,0.0001439,2]
[423471572,1780151442000,-83640.2483,0.00014352,2]
[423471603,1780151442000,-1545.0,0.00014487,2]
[423471580,1780151442000,-150.0,0.00014383,2]
[423471578,1780151442000,-3549.96069013,0.00014382,2]
[423471576,1780151442000,-2318.0,0.00014375,2]
[423471586,1780151442000,-1368.0,0.00014399,5]
[423471574,1780151442000,-163.0,0.0001436,2]
[423471575,1780151442000,-150.0,0.00014362,2]
[423471577,1780151442000,-150.0,0.00014376,2]
[423471589,1780151442000,-1238.99758836,0.000144,2]
[423471588,1780151442000,-150.0,0.000144,2]
[423471591,1780151442000,-150.0,0.00014404,2]
[423471587,1780151442000,-1317.0,0.00014399,5]
[423471593,1780151442000,-277.43026773,0.00014421,2]
[423471602,1780151442000,-1545.0,0.00014487,2]
[423471598,1780151442000,-2600.0,0.00014452,2]
[423471601,1780151442000,-150.0,0.00014466,2]
[423471600,1780151442000,-150.0,0.00014465,2]
[423471590,1780151442000,-9700.0,0.000144,5]
[423471599,1780151442000,-800.0,0.00014452,2]
[423471609,1780151442000,-150.0,0.00014487,2]
[423471596,1780151442000,-150.0,0.00014431,2]
[423471594,1780151442000,-150.0,0.00014424,2]
[423471595,1780151442000,-150.0,0.00014424,2]
[423471592,1780151442000,-150.0,0.00014404,2]
[423471597,1780151442000,-150.0,0.00014445,2]
[423471637,1780151443000,-150.0,0.00014653,2]
[423471636,1780151443000,-150.0,0.00014653,2]
[423471644,1780151443000,-3097.43964375,0.00014699,2]
[423471635,1780151443000,-150.0,0.00014653,2]
[423471634,1780151443000,-3549.96069013,0.00014641,2]
[423471642,1780151443000,-150.0,0.00014687,2]
[423471640,1780151443000,-163.0,0.0001468,2]
[423471641,1780151443000,-1590.0,0.0001468,2]
[423471639,1780151443000,-150.0,0.00014674,2]
[423471643,1780151443000,-150.0,0.00014695,2]
[423471638,1780151443000,-150.0,0.00014661,2]
[423471661,1780151444000,-150.0,0.00014737,2]
[423471668,1780151444000,-2000.0,0.0001478,2]
[423471665,1780151444000,-156.2014279,0.0001476,2]
[423471671,1780151444000,-200.0,0.00014793,2]
[423471673,1780151444000,-150.0,0.00014799,2]
[423471672,1780151444000,-150.0,0.00014799,2]
[423471683,1780151444000,-3743.12247816,0.0001485,2]
[423471676,1780151444000,-2008.0,0.000148,2]
[423471681,1780151444000,-150.0,0.00014836,2]
[423471679,1780151444000,-150.0,0.0001482,2]
[423471675,1780151444000,-1010.71429061,0.000148,2]
[423471674,1780151444000,-368.73880328,0.000148,3]
[423471682,1780151444000,-150.0,0.00014841,2]
[423471678,1780151444000,-150.0,0.0001482,2]
[423471680,1780151444000,-150.0,0.0001482,2]
[423471686,1780151444000,-150.0,0.00014856,2]
[423471685,1780151444000,-1666.66667,0.0001485,2]
[423471664,1780151444000,-1545.0,0.0001476,2]
[423471677,1780151444000,-2400.0,0.000148,5]
[423471663,1780151444000,-150.0,0.00014757,2]
[423471646,1780151444000,-11549.03311132,0.00014699,2]
[423471660,1780151444000,-150.0,0.00014737,2]
[423471695,1780151444000,-25000.0,0.00014891,3]
[423471645,1780151444000,-1122.02859332,0.00014699,2]
[423471647,1780151444000,-8433.8437662,0.00014699,2]
[423471652,1780151444000,-443.0,0.000147,2]
[423471653,1780151444000,-309.0,0.000147,2]
[423471649,1780151444000,-1000.0,0.000147,2]
[423471648,1780151444000,-10425.96797005,0.000147,2]
[423471650,1780151444000,-2400.0,0.000147,5]
[423471655,1780151444000,-150.0,0.00014709,2]
[423471651,1780151444000,-315.0,0.000147,2]
[423471657,1780151444000,-1584.63,0.00014722,2]
[423471658,1780151444000,-150.0,0.00014726,2]
[423471654,1780151444000,-150.0,0.00014705,2]
[423471656,1780151444000,-150.0,0.00014716,2]